[Event "FIDE WCCC Open-08 2024"]
[Site "Montesilvano"]
[Date "2024.11.18"]
[Round "4.9"]
[White "Huzela, Lukyan"]
[Black "Hu, Junyan"]
[Result "0-1"]
[ECO "B40"]
[WhiteElo "1651"]
[BlackElo "1924"]
[Annotator "RC"]
[PlyCount "96"]
[EventDate "2024.11.18"]
[EventType "swiss"]
[EventCountry "ITA"]
[SourceTitle "playchess.com"]
[Source "ChessBase"]
[SourceQuality "1"]
[TimeControl "5400+30"]

1. e4 {[%emt 0:00:01]} c5 {[%emt 0:00:07]} 2. Nf3 {[%emt 0:00:06]} e6 {[%emt 0:00:06]} 3. c4 {[%emt 0:00:04]} Nc6 {[%emt 0:00:09]} 4. Nc3 {[%emt 0:00:32]} Nd4 {[%emt 0:00:28]} 5. d3 {[%emt 0:01:27]} Ne7 {[%emt 0:04:53]} 6. Be2 {[%emt 0:02:57]} Nec6 {[%emt 0:01:46]} 7. O-O {[%emt 0:01:39]} Be7 {[%emt 0:00:41]} 8. Be3 {[%emt 0:04:57]} a6 {[%emt 0:02:42]} 9. Qd2 {[%emt 0:04:22]} O-O {[%emt 0:01:18]} 10. b3 {[%emt 0:15:31]} Qa5 {[%emt 0:00:48]} 11. Kh1 {[%emt 0:09:46]} Bf6 {[%emt 0:02:16]} 12. Rac1 {[%emt 0:04:07]} d6 {[%emt 0:05:23]} 13. Ng1 {[%emt 0:05:52]} b5 {[%emt 0:02:26]} 14. f4 {[%emt 0:02:09]} Nxe2 {[%emt 0:01:50]} 15. Ngxe2 {[%emt 0:06:35]} Nd4 {[%emt 0:03:04]} 16. Nxd4 {[%emt 0:03:40]} Bxd4 {[%emt 0:04:52]} 17. Bxd4 {[%emt 0:07:18]} cxd4 {[%emt 0:00:02]} 18. Nb1 {[%emt 0:00:00]} Qxd2 {[%emt 0:05:06]} 19. Nxd2 {[%emt 0:00:02]} Bd7 {[%emt 0:01:25]} 20. Nf3 {[%emt 0:01:33]} Rfc8 {[%emt 0:03:25]} 21. Nxd4 {[%emt 0:03:35]} f6 {[%emt 0:02:07]} 22. Rc2 {[%emt 0:03:06]} e5 {[%emt 0:04:17]} 23. Ne2 {[%emt 0:02:10]} b4 {[%emt 0:04:14]} 24. Rd2 {[%emt 0:03:41]} Bc6 {[%emt 0:00:54]} 25. Ng3 {[%emt 0:00:33]} Bb7 {[%emt 0:04:59]} 26. d4 {[%emt 0:06:05]} Rd8 {[%emt 0:03:24]} 27. f5 {[%emt 0:02:07]} a5 {[%emt 0:01:31]} 28. Rfd1 {[%emt 0:01:53]} Re8 {[%emt 0:01:03]} 29. Kg1 {[%emt 0:01:55]} a4 {[%emt 0:01:43]} 30. dxe5 {[%emt 0:01:17]} Rxe5 {[%emt 0:01:39]} 31. Rxd6 {[%emt 0:02:55]} Bxe4 {[%emt 0:03:09]} 32. Re6 {[%emt 0:00:50]} Rxe6 {[%emt 0:34:43]} 33. fxe6 {[%emt 0:00:47]} axb3 {[%emt 0:00:00]} 34. axb3 {[%emt 0:01:26]} Bc2 {[%emt 0:00:00]} 35. Re1 {[%emt 0:00:04]} Bxb3 {[%emt 0:00:00]} 36. e7 {[%emt 0:00:10]} Ba4 {[%emt 0:00:00]} 37. Nf5 {[%emt 0:02:12]} b3 {[%emt 0:00:00]} 38. Nd6 {[%emt 0:00:41]} b2 {[%emt 0:00:00]} 39. Rb1 {[%emt 0:00:27]} Rb8 {[%emt 0:00:00]} 40. c5 {[%emt 0:00:46]} g6 {[%emt 0:00:00]} 41. Kf2 {[%emt 0:00:15]} Kg7 {[%emt 0:00:00]} 42. g4 {[%emt 0:00:43]} g5 {[%emt 0:00:00]} 43. Ke3 {[%emt 0:00:15]} Be8 {[%emt 0:00:00]} 44. Ke4 {[%emt 0:00:19]} Bg6+ {[%emt 0:00:00]} 45. Nf5+ {[%emt 0:00:51]} Bxf5+ {[%emt 0:00:00]} 46. Kxf5 {[%emt 0:00:30]} Kf7 {[%emt 0:00:00]} 47. e8=Q+ {[%emt 0:01:49]} Rxe8 {[%emt 0:00:00]} 48. Rxb2 {[%emt 0:00:00]} Re5# {[%emt 0:00:00]} 0-1

[Event "FIDE WCCC Open-08 2024"]
[Site "Montesilvano"]
[Date "2024.11.18"]
[Round "4.10"]
[White "Pham, Han Nam"]
[Black "Adilbek, Adinur"]
[Result "0-1"]
[ECO "B13"]
[WhiteElo "1912"]
[BlackElo "1651"]
[Annotator "RC"]
[PlyCount "210"]
[EventDate "2024.11.18"]
[EventType "swiss"]
[EventCountry "ITA"]
[SourceTitle "playchess.com"]
[Source "ChessBase"]
[SourceQuality "1"]
[TimeControl "5400+30"]

1. d4 {[%emt 0:00:08]} Nf6 {[%emt 0:00:48]} 2. c4 {[%emt 0:00:51]} c5 {[%emt 0:00:44]} 3. e3 {[%emt 0:00:47]} cxd4 {[%emt 0:00:58]} 4. exd4 {[%emt 0:00:15]} d5 {[%emt 0:00:04]} 5. g3 {[%emt 0:02:28]} Nc6 {[%emt 0:01:27]} 6. Bg2 {[%emt 0:01:25]} e6 {[%emt 0:00:45]} 7. Nf3 {[%emt 0:01:59]} Bb4+ {[%emt 0:00:20]} 8. Bd2 {[%emt 0:00:37]} O-O {[%emt 0:02:40]} 9. O-O {[%emt 0:01:02]} dxc4 {[%emt 0:03:33]} 10. Bxb4 {[%emt 0:03:08]} Nxb4 {[%emt 0:00:09]} 11. Ne5 {[%emt 0:04:36]} Nbd5 {[%emt 0:05:48]} 12. Nxc4 {[%emt 0:01:25]} b5 {[%emt 0:00:18]} 13. Ne5 {[%emt 0:00:35]} Bb7 {[%emt 0:00:13]} 14. Nd2 {[%emt 0:02:51]} Rc8 {[%emt 0:01:16]} 15. Nb3 {[%emt 0:01:07]} Ba8 {[%emt 0:08:39]} 16. Qe2 {[%emt 0:08:46]} b4 {[%emt 0:07:56]} 17. Rac1 {[%emt 0:01:49]} Qe7 {[%emt 0:07:55]} 18. h3 {[%emt 0:01:22]} Qb7 {[%emt 0:07:47]} 19. f4 {[%emt 0:04:44]} Rxc1 {[%emt 0:00:25]} 20. Rxc1 {[%emt 0:00:29]} Rc8 {[%emt 0:00:09]} 21. Rxc8+ {[%emt 0:01:40]} Qxc8 {[%emt 0:00:10]} 22. Nc5 {[%emt 0:00:49]} h5 {[%emt 0:03:57]} 23. h4 {[%emt 0:01:29]} Nb6 {[%emt 0:02:15]} 24. Bh3 {[%emt 0:02:34]} Qd8 {[%emt 0:02:11]} 25. Qf2 {[%emt 0:02:34]} Qd6 {[%emt 0:13:27]} 26. b3 {[%emt 0:01:36]} Kf8 {[%emt 0:08:00]} 27. Kf1 {[%emt 0:02:11]} Ne4 {[%emt 0:08:02]} 28. Nxe4 {[%emt 0:01:08]} Bxe4 {[%emt 0:00:06]} 29. f5 {[%emt 0:02:17]} exf5 {[%emt 0:03:06]} 30. Bxf5 {[%emt 0:00:09]} Bd5 {[%emt 0:01:21]} 31. Qf4 {[%emt 0:01:06]} Kg8 {[%emt 0:03:31]} 32. Qg5 {[%emt 0:03:17]} Qc7 {[%emt 0:01:40]} 33. Bd3 {[%emt 0:04:04]} f6 {[%emt 0:02:14]} 34. Qg6 {[%emt 0:02:13]} Kf8 {[%emt 0:03:31]} 35. Qf5 {[%emt 0:02:42]} Qc8 {[%emt 0:00:51]} 36. Ng6+ {[%emt 0:00:45]} Kf7 {[%emt 0:00:11]} 37. Qxh5 {[%emt 0:01:54]} Qh3+ {[%emt 0:00:43]} 38. Ke2 {[%emt 0:00:53]} Qg2+ {[%emt 0:00:10]} 39. Ke1 {[%emt 0:00:57]} Qxg3+ {[%emt 0:00:13]} 40. Kd2 {[%emt 0:00:00]} Qh2+ {[%emt 0:01:29]} 41. Qe2 {[%emt 0:00:26]} Qc7 {[%emt 0:00:44]} 42. Qh5 {[%emt 0:05:30]} Qh2+ {[%emt 0:00:22]} 43. Be2 {[%emt 0:00:49]} Qg3 {[%emt 0:00:52]} 44. Nf4+ {[%emt 0:01:37]} Ke7 {[%emt 0:00:17]} 45. Ng6+ {[%emt 0:02:35]} Kf7 {[%emt 0:00:12]} 46. Ne5+ {[%emt 0:00:51]} Ke7 {[%emt 0:00:22]} 47. Nd3 {[%emt 0:01:05]} g6 {[%emt 0:01:13]} 48. Qh7+ {[%emt 0:00:37]} Bf7 {[%emt 0:00:19]} 49. Qh6 {[%emt 0:02:07]} Nd5 {[%emt 0:00:25]} 50. Bd1 {[%emt 0:05:30]} Qh2+ {[%emt 0:00:54]} 51. Be2 {[%emt 0:02:05]} Qg3 {[%emt 0:00:20]} 52. Kc2 {[%emt 0:02:39]} Qc7+ {[%emt 0:00:44]} 53. Nc5 {[%emt 0:00:53]} Qg3 {[%emt 0:00:30]} 54. Qd2 {[%emt 0:04:29]} g5 {[%emt 0:00:28]} 55. hxg5 {[%emt 0:01:58]} Bg6+ {[%emt 0:00:12]} 56. Bd3 {[%emt 0:00:45]} Bxd3+ {[%emt 0:00:34]} 57. Nxd3 {[%emt 0:00:22]} Qxg5 {[%emt 0:00:44]} 58. Qe1+ {[%emt 0:00:33]} Qe3 {[%emt 0:00:09]} 59. Qh1 {[%emt 0:03:48]} Qe2+ {[%emt 0:00:23]} 60. Kc1 {[%emt 0:00:08]} Qxd3 {[%emt 0:00:47]} 61. Qxd5 {[%emt 0:00:19]} Qc3+ {[%emt 0:00:15]} 62. Kd1 {[%emt 0:01:00]} Qd3+ {[%emt 0:00:20]} 63. Ke1 {[%emt 0:00:27]} Qb1+ {[%emt 0:01:00]} 64. Kd2 {[%emt 0:00:11]} Qxa2+ {[%emt 0:00:35]} 65. Kd3 {[%emt 0:00:07]} Qa6+ {[%emt 0:00:07]} 66. Kd2 {[%emt 0:00:28]} Qb6 {[%emt 0:00:38]} 67. Qe4+ {[%emt 0:00:13]} Kd6 {[%emt 0:00:28]} 68. Kd3 {[%emt 0:01:35]} Qb5+ {[%emt 0:00:28]} 69. Ke3 {[%emt 0:00:20]} Qc6 {[%emt 0:00:33]} 70. Qf4+ {[%emt 0:01:07]} Ke7 {[%emt 0:00:36]} 71. Qb8 {[%emt 0:00:23]} Qb6 {[%emt 0:00:46]} 72. Qh8 {[%emt 0:00:40]} Qe6+ {[%emt 0:00:19]} 73. Kf4 {[%emt 0:00:24]} Qxb3 {[%emt 0:00:21]} 74. Qg7+ {[%emt 0:00:08]} Qf7 {[%emt 0:00:12]} 75. Qg2 {[%emt 0:00:21]} b3 {[%emt 0:00:32]} 76. Qb7+ {[%emt 0:00:07]} Kf8 {[%emt 0:00:20]} 77. Qc8+ {[%emt 0:00:32]} Kg7 {[%emt 0:00:26]} 78. Qg4+ {[%emt 0:00:09]} Kf8 {[%emt 0:00:12]} 79. Qc8+ {[%emt 0:00:07]} Kg7 {[%emt 0:00:05]} 80. Qg4+ {[%emt 0:00:08]} Qg6 {[%emt 0:00:21]} 81. Qd7+ {[%emt 0:00:08]} Kh6 {[%emt 0:00:25]} 82. Qh3+ {[%emt 0:00:09]} Qh5 {[%emt 0:00:34]} 83. Qxb3 {[%emt 0:00:08]} Qh4+ {[%emt 0:00:55]} 84. Kf5 {[%emt 0:00:15]} Qg5+ {[%emt 0:00:32]} 85. Ke4 {[%emt 0:00:17]} Qg4+ {[%emt 0:00:21]} 86. Kd3 {[%emt 0:00:05]} Qg3+ {[%emt 0:00:19]} 87. Kc4 {[%emt 0:00:05]} Qxb3+ {[%emt 0:00:48]} 88. Kxb3 {[%emt 0:00:07]} Kg6 {[%emt 0:00:06]} 89. d5 {[%emt 0:00:07]} Kf7 {[%emt 0:00:05]} 90. Kc4 {[%emt 0:00:17]} Ke7 {[%emt 0:00:13]} 91. Kd4 {[%emt 0:00:08]} Kd6 {[%emt 0:00:13]} 92. Ke4 {[%emt 0:00:13]} a5 {[%emt 0:00:06]} 93. Kf5 {[%emt 0:00:05]} a4 {[%emt 0:00:08]} 94. Kxf6 {[%emt 0:00:07]} a3 {[%emt 0:00:05]} 95. Kf5 {[%emt 0:00:04]} a2 {[%emt 0:00:08]} 96. Ke4 {[%emt 0:00:06]} a1=Q {[%emt 0:00:08]} 97. Kd3 {[%emt 0:00:04]} Kxd5 {[%emt 0:00:09]} 98. Ke3 {[%emt 0:00:06]} Qf1 {[%emt 0:00:17]} 99. Kd2 {[%emt 0:00:01]} Kc4 {[%emt 0:00:15]} 100. Ke3 {[%emt 0:00:04]} Kd5 {[%emt 0:00:22]} 101. Kd2 {[%emt 0:00:02]} Kd4 {[%emt 0:00:14]} 102. Kc2 {[%emt 0:00:05]} Qd3+ {[%emt 0:00:09]} 103. Kc1 {[%emt 0:00:06]} Qe2 {[%emt 0:00:08]} 104. Kb1 {[%emt 0:00:04]} Kc3 {[%emt 0:00:10]} 105. Ka1 {[%emt 0:00:02]} Qb2# {[%emt 0:00:09]} 0-1

[Event "FIDE WCCC Open-08 2024"]
[Site "Montesilvano"]
[Date "2024.11.18"]
[Round "4.11"]
[White "Cherem, Yoseph"]
[Black "Xu, Zhihan (Samuel)"]
[Result "0-1"]
[ECO "D45"]
[WhiteElo "1634"]
[BlackElo "1881"]
[Annotator "NA RC"]
[PlyCount "84"]
[EventDate "2024.11.18"]
[EventType "swiss"]
[EventCountry "ITA"]
[SourceTitle "playchess.com"]
[Source "ChessBase"]
[SourceQuality "1"]
[TimeControl "5400+30"]

1. d4 {[%emt 0:00:04]} d5 {[%emt 0:00:02]} 2. c4 {[%emt 0:00:20]} c6 {[%emt 0:00:00]} 3. Nc3 {[%emt 0:00:25]} Nf6 {[%emt 0:00:04]} 4. Nf3 {[%emt 0:00:48]} e6 {[%emt 0:00:02]} 5. e3 {[%emt 0:01:39]} Nbd7 {[%emt 0:00:07]} 6. a3 {[%emt 0:01:53]} Bd6 {[%emt 0:02:11]} 7. g3 {[%emt 0:01:48]} O-O {[%emt 0:01:24]} 8. Bg2 {[%emt 0:01:05]} dxc4 {[%emt 1:30:40]} 9. O-O {[%emt 0:01:50]} e5 {[%emt 0:00:00]} 10. Nd2 {[%emt 0:03:01]} Nb6 {[%emt 0:00:00]} 11. Qc2 {[%emt 0:05:17]} exd4 {[%emt 0:00:00]} 12. exd4 {[%emt 0:00:15]} Be6 {[%emt 0:00:00]} 13. Na4 {[%emt 0:03:25]} Nxa4 {[%emt 0:00:00]} 14. Qxa4 {[%emt 1:15:40]} Bd5 {[%emt 0:00:00]} 15. Qc2 {[%emt 0:00:00]} b5 {[%emt 0:00:00]} 16. a4 {[%emt 0:00:00]} Qb6 {[%emt 0:00:00]} 17. axb5 {[%emt 0:00:00]} cxb5 {[%emt 0:00:00]} 18. Bxd5 {[%emt 0:00:00]} Nxd5 {[%emt 0:00:00]} 19. Nf3 {[%emt 0:00:00]} f5 {[%emt 0:00:00]} 20. Bd2 {[%emt 0:00:00]} g6 {[%emt 0:00:00]} 21. Rfe1 {[%emt 0:00:00]} Rfe8 {[%emt 0:00:00]} 22. b3 {[%emt 0:00:00]} c3 {[%emt 0:00:00]} 23. Rxe8+ {[%emt 0:00:00]} Rxe8 {[%emt 0:00:00]} 24. Bh6 {[%emt 0:00:00]} Bf8 {[%emt 0:00:00]} 25. Qc1 {[%emt 0:00:00]} Bxh6 {[%emt 0:08:30]} 26. Qxh6 {[%emt 0:00:00]} Nf6 {[%emt 0:00:00]} 27. Rc1 {[%emt 0:00:00]} Ng4 {[%emt 0:00:00]} 28. Qf4 {[%emt 0:00:00]} Re4 {[%emt 0:00:00]} 29. Qg5 {[%emt 0:00:00]} h6 {[%emt 0:00:00]} 30. Qh4 {[%emt 0:00:00]} Ne5 {[%emt 0:00:00]} 31. dxe5 {[%emt 0:00:00]} Rxh4 {[%emt 0:00:00]} 32. Nxh4 {[%emt 0:00:00]} Qd4 {[%emt 0:00:00]} 33. Nf3 {[%emt 0:00:00]} Qd3 {[%emt 0:00:00]} 34. Kg2 {[%emt 0:00:00]} b4 {[%emt 0:00:00]} 35. e6 {[%emt 0:00:00]} Kf8 {[%emt 0:00:20]} 36. h4 {[%emt 0:00:00]} Qd5 {[%emt 0:01:16]} 37. e7+ {[%emt 0:00:00]} Kxe7 {[%emt 0:00:03]} 38. Re1+ {[%emt 0:00:00]} Kf6 {[%emt 0:00:07]} 39. Rb1 {[%emt 0:00:00]} c2 {[%emt 0:00:25]} 40. Rc1 {[%emt 0:00:00]} Qd1 {[%emt 0:00:05]} 41. Rxd1 {[%emt 0:00:00]} cxd1=Q {[%emt 0:00:06]} 42. Nh2 {[%emt 0:00:00]} Qxb3 {[%emt 0:00:04]} 0-1

[Event "FIDE WCCC Open-08 2024"]
[Site "Montesilvano"]
[Date "2024.11.18"]
[Round "4.12"]
[White "Mani, Sarbartho"]
[Black "Nguyen Phuc Cao Danh"]
[Result "1-0"]
[ECO "C18"]
[WhiteElo "1824"]
[BlackElo "1627"]
[Annotator "NA RC"]
[PlyCount "71"]
[EventDate "2024.11.18"]
[EventType "swiss"]
[EventCountry "ITA"]
[SourceTitle "playchess.com"]
[Source "ChessBase"]
[SourceQuality "1"]
[TimeControl "5400+30"]

1. e4 {[%emt 0:00:05]} e6 {[%emt 0:00:26]} 2. d4 {[%emt 0:00:07]} d5 {[%emt 0:00:14]} 3. Nc3 {[%emt 0:00:07]} Bb4 {[%emt 0:00:18]} 4. e5 {[%emt 0:00:08]} c5 {[%emt 0:01:36]} 5. a3 {[%emt 0:00:06]} cxd4 {[%emt 0:00:50]} 6. axb4 {[%emt 0:01:03]} dxc3 {[%emt 0:00:14]} 7. bxc3 {[%emt 0:00:04]} Qc7 {[%emt 0:01:13]} 8. f4 {[%emt 0:00:14]} Qxc3+ {[%emt 0:03:51]} 9. Bd2 {[%emt 0:00:05]} Qc7 {[%emt 0:00:27]} 10. Nf3 {[%emt 0:00:14]} Ne7 {[%emt 0:01:21]} 11. Bd3 {[%emt 0:00:07]} Nd7 {[%emt 0:05:12]} 12. O-O {[%emt 0:00:56]} Nb6 {[%emt 0:01:15]} 13. Qe2 {[%emt 0:19:41]} Nc4 {[%emt 0:01:43]} 14. Bc3 {[%emt 0:01:57]} g6 {[%emt 0:21:09]} 15. Kh1 {[%emt 0:01:53]} Bd7 {[%emt 0:03:54]} 16. Nd4 {[%emt 0:03:53]} Rg8 {[%emt 0:08:45]} 17. Be1 {[%emt 0:25:46]} h6 {[%emt 0:25:31]} 18. Bh4 {[%emt 0:00:48]} g5 {[%emt 0:03:39]} 19. fxg5 {[%emt 0:00:06]} Qxe5 {[%emt 0:01:54]} 20. Qf2 {[%emt 0:02:29]} O-O-O {[%emt 0:05:53]} 21. Bg3 {[%emt 0:01:40]} Qxg5 {[%emt 0:02:38]} 22. Bh4 {[%emt 0:00:20]} Qg7 {[%emt 0:00:44]} 23. Bxc4 {[%emt 0:03:00]} Nc6 {[%emt 0:02:51]} 24. Bf6 {[%emt 0:01:41]} Qg4 {[%emt 0:00:48]} 25. Be2 {[%emt 0:02:29]} Qg6 {[%emt 0:00:26]} 26. Bd3 {[%emt 0:00:21]} Qg4 {[%emt 0:00:13]} 27. Nxc6 {[%emt 0:00:17]} Bxc6 {[%emt 0:00:14]} 28. b5 {[%emt 0:00:10]} Be8 {[%emt 0:00:44]} 29. h3 {[%emt 0:00:15]} Qh5 {[%emt 0:00:19]} 30. Qc5+ {[%emt 0:00:10]} Kb8 {[%emt 0:00:33]} 31. Rf5 {[%emt 0:00:51]} b6 {[%emt 0:00:39]} 32. Be5+ {[%emt 0:00:28]} Ka8 {[%emt 0:00:06]} 33. Rxa7+ {[%emt 0:00:09]} Kxa7 {[%emt 0:00:07]} 34. Qc7+ {[%emt 0:00:27]} Ka8 {[%emt 0:00:07]} 35. Qxd8+ {[%emt 0:00:16]} Kb7 {[%emt 0:00:09]} 36. Qb8# {[%emt 0:00:06]} 1-0

[Event "FIDE WCCC Open-08 2024"]
[Site "Montesilvano"]
[Date "2024.11.18"]
[Round "4.13"]
[White "Protopopescu, Luca"]
[Black "Khantulga, Tuvshinbayar"]
[Result "1-0"]
[ECO "C50"]
[WhiteElo "1818"]
[BlackElo "1611"]
[Annotator "NA RC"]
[PlyCount "103"]
[EventDate "2024.11.18"]
[EventType "swiss"]
[EventCountry "ITA"]
[SourceTitle "playchess.com"]
[Source "ChessBase"]
[SourceQuality "1"]
[TimeControl "5400+30"]

1. e4 {[%emt 0:00:02]} e5 {[%emt 0:00:05]} 2. Nf3 {[%emt 0:00:05]} Nc6 {[%emt 0:00:06]} 3. Bc4 {[%emt 0:00:04]} Nf6 {[%emt 0:00:07]} 4. Nc3 {[%emt 0:01:30]} Bc5 {[%emt 0:00:06]} 5. O-O {[%emt 0:00:40]} d6 {[%emt 0:00:08]} 6. h3 {[%emt 0:00:23]} O-O {[%emt 0:00:07]} 7. d3 {[%emt 0:00:18]} h6 {[%emt 0:00:06]} 8. Be3 {[%emt 0:00:21]} Bb6 {[%emt 0:01:03]} 9. d4 {[%emt 0:00:49]} exd4 {[%emt 0:03:04]} 10. Nxd4 {[%emt 0:00:12]} Ne5 {[%emt 0:02:15]} 11. Be2 {[%emt 0:00:17]} d5 {[%emt 0:02:28]} 12. f4 {[%emt 0:01:02]} Nc6 {[%emt 0:01:24]} 13. e5 {[%emt 0:01:02]} Ne4 {[%emt 0:00:32]} 14. Nxe4 {[%emt 0:00:47]} dxe4 {[%emt 0:00:52]} 15. c3 {[%emt 0:00:44]} Bd7 {[%emt 0:04:55]} 16. Rc1 {[%emt 0:01:43]} Qc8 {[%emt 0:01:56]} 17. Qc2 {[%emt 0:01:25]} Nxd4 {[%emt 0:01:53]} 18. Bxd4 {[%emt 0:00:27]} c5 {[%emt 0:01:09]} 19. Be3 {[%emt 0:00:09]} Bc6 {[%emt 0:01:03]} 20. c4 {[%emt 0:00:30]} Qc7 {[%emt 0:01:31]} 21. Rfd1 {[%emt 0:01:29]} Rad8 {[%emt 0:00:45]} 22. Rxd8 {[%emt 0:00:44]} Rxd8 {[%emt 0:00:08]} 23. Rd1 {[%emt 0:00:40]} Rd4 {[%emt 0:02:43]} 24. Bxd4 {[%emt 0:03:25]} cxd4 {[%emt 0:00:14]} 25. c5 {[%emt 0:00:11]} d3 {[%emt 0:00:03]} 26. Qc3 {[%emt 0:00:16]} dxe2 {[%emt 0:00:15]} 27. Re1 {[%emt 0:00:12]} Ba5 {[%emt 0:00:08]} 28. b4 {[%emt 0:00:05]} Bb6 {[%emt 0:01:35]} 29. cxb6 {[%emt 0:00:11]} Qxb6+ {[%emt 0:00:07]} 30. Qc5 {[%emt 0:00:44]} Qxc5+ {[%emt 0:00:15]} 31. bxc5 {[%emt 0:00:09]} Bb5 {[%emt 0:00:08]} 32. Kf2 {[%emt 0:00:08]} Kf8 {[%emt 0:00:24]} 33. Ke3 {[%emt 0:00:21]} Bd3 {[%emt 0:00:11]} 34. Rxe2 {[%emt 0:01:22]} Bxe2 {[%emt 0:00:15]} 35. Kxe2 {[%emt 0:00:06]} f5 {[%emt 0:01:08]} 36. exf6 {[%emt 0:00:08]} gxf6 {[%emt 0:00:15]} 37. Ke3 {[%emt 0:00:34]} f5 {[%emt 0:00:43]} 38. g4 {[%emt 0:00:06]} fxg4 {[%emt 0:00:09]} 39. hxg4 {[%emt 0:00:05]} Kf7 {[%emt 0:00:10]} 40. Kxe4 {[%emt 0:00:07]} a5 {[%emt 0:02:07]} 41. a4 {[%emt 0:00:11]} Kf6 {[%emt 0:04:31]} 42. Kd5 {[%emt 0:00:31]} Ke7 {[%emt 0:02:46]} 43. g5 {[%emt 0:00:22]} h5 {[%emt 0:00:32]} 44. f5 {[%emt 0:00:09]} Kf7 {[%emt 0:00:32]} 45. Ke4 {[%emt 0:00:12]} Kg7 {[%emt 0:01:20]} 46. Kf4 {[%emt 0:00:11]} b5 {[%emt 0:00:08]} 47. cxb6 {[%emt 0:00:12]} Kg8 {[%emt 0:00:59]} 48. b7 {[%emt 0:00:08]} h4 {[%emt 0:00:05]} 49. b8=Q+ {[%emt 0:00:05]} Kh7 {[%emt 0:03:52]} 50. g6+ {[%emt 0:00:11]} Kg7 {[%emt 0:00:17]} 51. Kg5 {[%emt 0:00:06]} h3 {[%emt 0:11:08]} 52. f6# {[%emt 0:00:21]} 1-0

[Event "FIDE WCCC Open-08 2024"]
[Site "Montesilvano"]
[Date "2024.11.18"]
[Round "4.14"]
[White "Ayaan Phutane"]
[Black "Movsisyan, Samvel"]
[Result "1-0"]
[ECO "E36"]
[WhiteElo "1796"]
[BlackElo "1604"]
[Annotator "NA RC"]
[PlyCount "85"]
[EventDate "2024.11.18"]
[EventType "swiss"]
[EventCountry "ITA"]
[SourceTitle "playchess.com"]
[Source "ChessBase"]
[SourceQuality "1"]
[TimeControl "5400+30"]

1. d4 {[%emt 0:00:15]} Nf6 {[%emt 0:00:07]} 2. c4 {[%emt 0:00:09]} e6 {[%emt 0:00:06]} 3. Nc3 {[%emt 0:00:06]} Bb4 {[%emt 0:00:06]} 4. Qc2 {[%emt 0:00:06]} O-O {[%emt 0:00:18]} 5. a3 {[%emt 0:00:10]} Bxc3+ {[%emt 0:00:23]} 6. Qxc3 {[%emt 0:00:07]} d5 {[%emt 0:00:28]} 7. e3 {[%emt 0:01:30]} c6 {[%emt 0:00:50]} 8. b4 {[%emt 0:01:33]} Nbd7 {[%emt 0:00:39]} 9. Nf3 {[%emt 0:00:48]} a5 {[%emt 0:00:51]} 10. Bb2 {[%emt 0:03:13]} Nb6 {[%emt 0:00:34]} 11. c5 {[%emt 0:00:41]} Na4 {[%emt 0:00:14]} 12. Qc2 {[%emt 0:00:50]} Nxb2 {[%emt 0:00:06]} 13. Qxb2 {[%emt 0:00:08]} axb4 {[%emt 0:00:23]} 14. axb4 {[%emt 0:00:11]} Bd7 {[%emt 0:00:30]} 15. Bd3 {[%emt 0:00:37]} Qc7 {[%emt 0:01:28]} 16. O-O {[%emt 0:01:21]} b6 {[%emt 0:02:17]} 17. Ne5 {[%emt 0:14:52]} bxc5 {[%emt 0:01:21]} 18. bxc5 {[%emt 0:00:15]} Rfb8 {[%emt 0:00:22]} 19. Rxa8 {[%emt 0:00:08]} Rxa8 {[%emt 0:00:06]} 20. Rb1 {[%emt 0:02:49]} Bc8 {[%emt 0:06:26]} 21. Qb6 {[%emt 0:04:41]} Qxb6 {[%emt 0:02:08]} 22. Rxb6 {[%emt 0:06:55]} Nd7 {[%emt 0:00:40]} 23. Rxc6 {[%emt 0:01:02]} Nxe5 {[%emt 0:00:13]} 24. dxe5 {[%emt 0:00:09]} Ra1+ {[%emt 0:00:03]} 25. Bf1 {[%emt 0:00:19]} Bb7 {[%emt 0:01:40]} 26. Rb6 {[%emt 0:00:22]} Ra7 {[%emt 0:00:31]} 27. c6 {[%emt 0:00:11]} Bc8 {[%emt 0:01:35]} 28. Rb8 {[%emt 0:00:10]} Rc7 {[%emt 0:00:06]} 29. Ba6 {[%emt 0:00:05]} Rxc6 {[%emt 0:00:06]} 30. Rxc8+ {[%emt 0:00:04]} Rxc8 {[%emt 0:00:09]} 31. Bxc8 {[%emt 0:00:05]} Kf8 {[%emt 0:00:07]} 32. Kf1 {[%emt 0:00:05]} Ke7 {[%emt 0:00:06]} 33. Ke2 {[%emt 0:00:04]} f6 {[%emt 0:00:06]} 34. exf6+ {[%emt 0:00:04]} gxf6 {[%emt 0:00:07]} 35. Kd3 {[%emt 0:00:04]} e5 {[%emt 0:00:11]} 36. Bf5 {[%emt 0:00:09]} h6 {[%emt 0:00:10]} 37. Kc3 {[%emt 0:00:43]} Kd6 {[%emt 0:00:10]} 38. e4 {[%emt 0:00:20]} d4+ {[%emt 0:00:25]} 39. Kc4 {[%emt 0:00:05]} h5 {[%emt 0:00:27]} 40. h4 {[%emt 0:00:26]} Ke7 {[%emt 0:00:05]} 41. Bg6 {[%emt 0:00:15]} Ke6 {[%emt 0:00:06]} 42. Bxh5 {[%emt 1:05:23]} f5 {[%emt 1:24:44]} 43. Bg6 {[%emt 0:00:00]} 1-0

[Event "FIDE WCCC Open-08 2024"]
[Site "Montesilvano"]
[Date "2024.11.18"]
[Round "4.15"]
[White "Ulan, Rizat"]
[Black "Muratshin, Ramazan"]
[Result "1-0"]
[ECO "C06"]
[WhiteElo "1783"]
[BlackElo "1597"]
[Annotator "NA RC"]
[PlyCount "45"]
[EventDate "2024.11.18"]
[EventType "swiss"]
[EventCountry "ITA"]
[SourceTitle "playchess.com"]
[Source "ChessBase"]
[SourceQuality "1"]
[TimeControl "5400+30"]

1. e4 {[%emt 0:00:07]} e6 {[%emt 0:00:05]} 2. d4 {[%emt 0:00:08]} d5 {[%emt 0:00:03]} 3. Nd2 {[%emt 0:00:14]} Nf6 {[%emt 0:00:19]} 4. e5 {[%emt 0:00:10]} Nfd7 {[%emt 0:00:07]} 5. Bd3 {[%emt 0:00:09]} c5 {[%emt 0:00:09]} 6. c3 {[%emt 0:00:07]} Nc6 {[%emt 0:00:06]} 7. Ne2 {[%emt 0:00:19]} cxd4 {[%emt 0:03:54]} 8. cxd4 {[%emt 0:00:09]} Qb6 {[%emt 0:03:14]} 9. Nf3 {[%emt 0:00:19]} Be7 {[%emt 0:06:14]} 10. O-O {[%emt 0:03:17]} O-O {[%emt 0:05:10]} 11. a3 {[%emt 1:31:01]} Rd8 {[%emt 0:03:23]} 12. b4 {[%emt 0:00:00]} a6 {[%emt 0:00:46]} 13. Bf4 {[%emt 0:00:00]} Nf8 {[%emt 0:01:30]} 14. h4 {[%emt 0:00:00]} Bd7 {[%emt 0:00:50]} 15. Bg5 {[%emt 0:00:00]} Rac8 {[%emt 0:01:03]} 16. Qd2 {[%emt 0:00:00]} Re8 {[%emt 0:21:51]} 17. Qf4 {[%emt 0:00:00]} Ng6 {[%emt 0:00:48]} 18. Qg4 {[%emt 0:00:00]} Qd8 {[%emt 0:17:53]} 19. h5 {[%emt 0:00:00]} Nf8 {[%emt 0:01:27]} 20. Bh6 {[%emt 0:00:00]} g6 {[%emt 0:00:31]} 21. Nf4 {[%emt 0:00:00]} Kh8 {[%emt 0:00:54]} 22. Ng5 {[%emt 0:00:00]} Kg8 {[%emt 0:01:01]} 23. Nxf7 {[%emt 0:00:00]} 1-0

[Event "FIDE WCCC Open-08 2024"]
[Site "Montesilvano"]
[Date "2024.11.18"]
[Round "4.16"]
[White "Jevglevski, Lev"]
[Black "Kuncoro, Leo"]
[Result "0-1"]
[ECO "B34"]
[WhiteElo "1602"]
[BlackElo "1726"]
[Annotator "NA RC"]
[PlyCount "28"]
[EventDate "2024.11.18"]
[EventType "swiss"]
[EventCountry "ITA"]
[SourceTitle "playchess.com"]
[Source "ChessBase"]
[SourceQuality "1"]
[TimeControl "5400+30"]

1. e4 {[%emt 0:00:02]} c5 {[%emt 0:00:06]} 2. Nf3 {[%emt 0:00:06]} Nc6 {[%emt 0:00:08]} 3. d4 {[%emt 0:00:14]} cxd4 {[%emt 0:00:11]} 4. Nxd4 {[%emt 0:00:07]} g6 {[%emt 0:00:07]} 5. Nc3 {[%emt 0:01:33]} Bg7 {[%emt 0:00:12]} 6. Be3 {[%emt 0:00:56]} Nf6 {[%emt 0:00:11]} 7. f3 {[%emt 0:01:07]} O-O {[%emt 0:00:33]} 8. Qd2 {[%emt 0:01:31]} d5 {[%emt 0:00:13]} 9. O-O-O {[%emt 0:06:12]} e6 {[%emt 0:21:40]} 10. g4 {[%emt 0:09:32]} dxe4 {[%emt 0:05:19]} 11. g5 {[%emt 0:02:32]} Nd5 {[%emt 0:02:45]} 12. Nxc6 {[%emt 0:04:29]} bxc6 {[%emt 0:03:26]} 13. fxe4 {[%emt 0:01:21]} Bxc3 {[%emt 0:08:18]} 14. bxc3 {[%emt 0:02:23]} Qa5 {[%emt 0:00:48]} 0-1